[Event "Titled Tuesday Blitz March 08 Late 2022"]
[White "Ibarra Jerez, Jose Carlos"]
[Black "Martinez Alcantara, Jose Eduardo"]
[WhiteFideId "2226332"]
[BlackFideId "3805662"]
[WhiteElo "2626"]
[BlackElo "2690"]
[Result "1-0"]
[Round "06"]
[TimeControl "180+1"]
[Date "2022.03.08"]
[WhiteClock "0:00:03"]
[BlackClock "0:00:01"]

1. e4 {[%clk 0:03:00]}  c5 {[%clk 0:02:58]} 2. Ne2 {[%clk 0:03:01]}  Nc6 {[%clk 0:02:55]} 3. d4 {[%clk 0:03:00]}  cxd4 {[%clk 0:02:55]} 4. Nxd4 {[%clk 0:03:00]}  Nf6 {[%clk 0:02:56]} 5. Nc3 {[%clk 0:03:01]}  d6 {[%clk 0:02:57]} 6. Nd5 {[%clk 0:03:01]}  e6 {[%clk 0:02:46]} 7. Nxf6+ {[%clk 0:03:00]}  gxf6 {[%clk 0:02:45]} 8. Nxc6 {[%clk 0:02:59]}  bxc6 {[%clk 0:02:46]} 9. Qh5 {[%clk 0:02:59]}  Qb6 {[%clk 0:02:32]} 10. Bd3 {[%clk 0:02:54]}  a5 {[%clk 0:02:17]} 11. O-O {[%clk 0:02:51]}  a4 {[%clk 0:02:18]} 12. Rb1 {[%clk 0:02:46]}  Ra5 {[%clk 0:02:10]} 13. Qe2 {[%clk 0:02:37]}  Rg8 {[%clk 0:02:06]} 14. Be3 {[%clk 0:02:35]}  Qc7 {[%clk 0:02:05]} 15. b4 {[%clk 0:02:28]}  axb3 {[%clk 0:02:02]} 16. axb3 {[%clk 0:02:23]}  Be7 {[%clk 0:01:48]} 17. b4 {[%clk 0:02:15]}  Ra8 {[%clk 0:01:48]} 18. Qh5 {[%clk 0:02:13]}  Rh8 {[%clk 0:01:43]} 19. Ra1 {[%clk 0:02:07]}  Rb8 {[%clk 0:01:33]} 20. Ra7 {[%clk 0:02:05]}  Rb7 {[%clk 0:01:28]} 21. Rfa1 {[%clk 0:02:03]}  d5 {[%clk 0:01:09]} 22. exd5 {[%clk 0:00:59]}  exd5 {[%clk 0:00:59]} 23. b5 {[%clk 0:00:54]}  c5 {[%clk 0:00:50]} 24. Rxb7 {[%clk 0:00:44]}  Bxb7 {[%clk 0:00:51]} 25. c4 {[%clk 0:00:40]}  d4 {[%clk 0:00:36]} 26. Bd2 {[%clk 0:00:35]}  Bd6 {[%clk 0:00:21]} 27. Ba5 {[%clk 0:00:28]}  Qd7 {[%clk 0:00:08]} 28. Re1+ {[%clk 0:00:29]}  Be7 {[%clk 0:00:04]} 29. Qxc5 {[%clk 0:00:24]}  Rg8 {[%clk 0:00:05]} 30. g3 {[%clk 0:00:16]}  Rg5 {[%clk 0:00:05]} 31. Qc7 {[%clk 0:00:14]}  Qxc7 {[%clk 0:00:03]} 32. Bxc7 {[%clk 0:00:14]}  Kd7 {[%clk 0:00:04]} 33. Bf4 {[%clk 0:00:15]}  Rc5 {[%clk 0:00:02]} 34. h4 {[%clk 0:00:12]}  Bd6 {[%clk 0:00:02]} 35. Bxd6 {[%clk 0:00:09]}  Kxd6 {[%clk 0:00:03]} 36. Re8 {[%clk 0:00:08]}  Re5 {[%clk 0:00:03]} 37. Rxe5 {[%clk 0:00:08]}  fxe5 {[%clk 0:00:04]} 38. Bxh7 {[%clk 0:00:07]}  Kc5 {[%clk 0:00:04]} 39. h5 {[%clk 0:00:07]}  e4 {[%clk 0:00:04]} 40. h6 {[%clk 0:00:06]}  d3 {[%clk 0:00:05]} 41. Kf1 {[%clk 0:00:06]}  Kxc4 {[%clk 0:00:05]} 42. Bf5 {[%clk 0:00:05]}  d2 {[%clk 0:00:02]} 43. Ke2 {[%clk 0:00:04]}  Kc3 {[%clk 0:00:02]} 44. h7 {[%clk 0:00:04]}  e3 {[%clk 0:00:03]} 45. h8=Q+ {[%clk 0:00:04]}  Kc4 {[%clk 0:00:03]} 46. Qb2 {[%clk 0:00:04]}  Bf3+ {[%clk 0:00:03]} 47. Kxf3 {[%clk 0:00:03]}  d1=Q+ {[%clk 0:00:03]} 48. Kxe3 {[%clk 0:00:04]}  Kc5 {[%clk 0:00:01]} 49. Qe5+ {[%clk 0:00:03]} 1-0


[Site "https://www.chess.com"]

[Event "Titled Tuesday Blitz March 08 Late 2022"]
[White "Jaferian, Koosha"]
[Black "Dardha, Daniel"]
[WhiteFideId "12507440"]
[BlackFideId "240990"]
[WhiteElo "2030"]
[BlackElo "2482"]
[Result "1/2-1/2"]
[Round "06"]
[TimeControl "180+1"]
[Date "2022.03.08"]
[WhiteClock "0:00:16"]
[BlackClock "0:00:09"]

1. Nf3 {[%clk 0:03:00]}  d5 {[%clk 0:02:49]} 2. b3 {[%clk 0:02:59]}  Bg4 {[%clk 0:02:39]} 3. Bb2 {[%clk 0:02:59]}  Bxf3 {[%clk 0:02:39]} 4. exf3 {[%clk 0:03:00]}  e6 {[%clk 0:02:39]} 5. f4 {[%clk 0:03:01]}  Nf6 {[%clk 0:02:38]} 6. g3 {[%clk 0:03:01]}  g6 {[%clk 0:02:38]} 7. Bg2 {[%clk 0:03:02]}  c6 {[%clk 0:02:39]} 8. O-O {[%clk 0:03:02]}  Nbd7 {[%clk 0:02:39]} 9. d3 {[%clk 0:03:03]}  Bg7 {[%clk 0:02:39]} 10. Nd2 {[%clk 0:03:04]}  O-O {[%clk 0:02:39]} 11. Nf3 {[%clk 0:03:03]}  a5 {[%clk 0:02:39]} 12. a4 {[%clk 0:03:03]}  Ng4 {[%clk 0:02:38]} 13. Bxg7 {[%clk 0:03:02]}  Kxg7 {[%clk 0:02:39]} 14. Qe2 {[%clk 0:03:01]}  Ngf6 {[%clk 0:02:38]} 15. Rfe1 {[%clk 0:02:59]}  b5 {[%clk 0:02:38]} 16. Ne5 {[%clk 0:02:58]}  Nxe5 {[%clk 0:02:38]} 17. fxe5 {[%clk 0:02:59]}  Nd7 {[%clk 0:02:38]} 18. f4 {[%clk 0:02:57]}  Qb6+ {[%clk 0:02:37]} 19. Qf2 {[%clk 0:02:57]}  Qxf2+ {[%clk 0:02:37]} 20. Kxf2 {[%clk 0:02:58]}  Rfb8 {[%clk 0:02:34]} 21. d4 {[%clk 0:02:54]}  Nb6 {[%clk 0:02:29]} 22. Reb1 {[%clk 0:02:46]}  bxa4 {[%clk 0:02:25]} 23. bxa4 {[%clk 0:02:46]}  Nc4 {[%clk 0:02:16]} 24. Bf1 {[%clk 0:02:33]}  Nd2 {[%clk 0:02:10]} 25. Rxb8 {[%clk 0:02:32]}  Ne4+ {[%clk 0:02:05]} 26. Ke3 {[%clk 0:02:28]}  Rxb8 {[%clk 0:02:06]} 27. Bd3 {[%clk 0:02:12]}  c5 {[%clk 0:01:42]} 28. Bxe4 {[%clk 0:02:09]}  cxd4+ {[%clk 0:01:40]} 29. Kd3 {[%clk 0:01:56]}  dxe4+ {[%clk 0:01:37]} 30. Kxe4 {[%clk 0:01:57]}  Rb4 {[%clk 0:01:36]} 31. Rd1 {[%clk 0:01:52]}  Rxa4 {[%clk 0:01:35]} 32. Rxd4 {[%clk 0:01:51]}  Ra2 {[%clk 0:01:34]} 33. Rc4 {[%clk 0:01:46]}  h6 {[%clk 0:01:26]} 34. h4 {[%clk 0:01:44]}  Ra1 {[%clk 0:01:23]} 35. Rc8 {[%clk 0:01:36]}  a4 {[%clk 0:01:17]} 36. Ra8 {[%clk 0:01:36]}  a3 {[%clk 0:01:10]} 37. Kf3 {[%clk 0:01:24]}  a2 {[%clk 0:01:06]} 38. Kg2 {[%clk 0:01:23]}  g5 {[%clk 0:01:07]} 39. hxg5 {[%clk 0:01:21]}  hxg5 {[%clk 0:01:08]} 40. Ra7 {[%clk 0:00:54]}  g4 {[%clk 0:00:46]} 41. c4 {[%clk 0:00:49]}  Kg6 {[%clk 0:00:46]} 42. c5 {[%clk 0:00:49]}  Rc1 {[%clk 0:00:38]} 43. Rxa2 {[%clk 0:00:48]}  Rxc5 {[%clk 0:00:39]} 44. Re2 {[%clk 0:00:48]}  Kf5 {[%clk 0:00:38]} 45. Kf2 {[%clk 0:00:44]}  Rc3 {[%clk 0:00:38]} 46. Kg2 {[%clk 0:00:42]}  Rc4 {[%clk 0:00:38]} 47. Kf2 {[%clk 0:00:38]}  Ra4 {[%clk 0:00:36]} 48. Kg2 {[%clk 0:00:38]}  Re4 {[%clk 0:00:36]} 49. Ra2 {[%clk 0:00:33]}  Re1 {[%clk 0:00:36]} 50. Kf2 {[%clk 0:00:31]}  Rh1 {[%clk 0:00:35]} 51. Ra7 {[%clk 0:00:27]}  Rh2+ {[%clk 0:00:31]} 52. Ke3 {[%clk 0:00:28]}  Kg6 {[%clk 0:00:29]} 53. Ra3 {[%clk 0:00:21]}  Rg2 {[%clk 0:00:23]} 54. Ke4 {[%clk 0:00:21]}  Re2+ {[%clk 0:00:22]} 55. Re3 {[%clk 0:00:21]}  Ra2 {[%clk 0:00:23]} 56. Rd3 {[%clk 0:00:21]}  Ra4+ {[%clk 0:00:19]} 57. Rd4 {[%clk 0:00:21]}  Ra1 {[%clk 0:00:16]} 58. Rd3 {[%clk 0:00:22]}  Re1+ {[%clk 0:00:16]} 59. Re3 {[%clk 0:00:22]}  Rf1 {[%clk 0:00:16]} 60. Rd3 {[%clk 0:00:23]}  Ra1 {[%clk 0:00:16]} 61. Kd4 {[%clk 0:00:12]}  Kf5 {[%clk 0:00:15]} 62. Ke3 {[%clk 0:00:13]}  Rf1 {[%clk 0:00:12]} 63. Kd4 {[%clk 0:00:11]}  Rf2 {[%clk 0:00:10]} 64. Re3 {[%clk 0:00:10]}  Rd2+ {[%clk 0:00:09]} 65. Kc4 {[%clk 0:00:11]}  Rd8 {[%clk 0:00:08]} 66. Kc3 {[%clk 0:00:11]}  Rd5 {[%clk 0:00:08]} 67. Kc4 {[%clk 0:00:11]}  Kg6 {[%clk 0:00:09]} 68. Kc3 {[%clk 0:00:10]}  Kg7 {[%clk 0:00:09]} 69. Kc4 {[%clk 0:00:10]}  Kh7 {[%clk 0:00:09]} 70. Rd3 {[%clk 0:00:10]}  Ra5 {[%clk 0:00:09]} 71. Kd4 {[%clk 0:00:11]}  Ra4+ {[%clk 0:00:08]} 72. Ke3 {[%clk 0:00:11]}  Kg6 {[%clk 0:00:09]} 73. Rd4 {[%clk 0:00:11]}  Ra1 {[%clk 0:00:09]} 74. Rd3 {[%clk 0:00:11]}  Kf5 {[%clk 0:00:08]} 75. Kd4 {[%clk 0:00:11]}  Re1 {[%clk 0:00:07]} 76. Re3 {[%clk 0:00:10]}  Rf1 {[%clk 0:00:08]} 77. Kd3 {[%clk 0:00:10]}  Rf2 {[%clk 0:00:08]} 78. Kd4 {[%clk 0:00:10]}  Rd2+ {[%clk 0:00:07]} 79. Kc3 {[%clk 0:00:10]}  Rd5 {[%clk 0:00:07]} 80. Kc4 {[%clk 0:00:10]}  f6 {[%clk 0:00:06]} 81. exf6 {[%clk 0:00:10]}  Kxf6 {[%clk 0:00:07]} 82. Kc3 {[%clk 0:00:10]}  Kf5 {[%clk 0:00:08]} 83. Kc4 {[%clk 0:00:11]}  Ra5 {[%clk 0:00:07]} 84. Kd4 {[%clk 0:00:11]}  Ra4+ {[%clk 0:00:07]} 85. Kd3 {[%clk 0:00:11]}  Ra5 {[%clk 0:00:06]} 86. Kd4 {[%clk 0:00:11]}  Rd5+ {[%clk 0:00:05]} 87. Kc4 {[%clk 0:00:11]}  Kf6 {[%clk 0:00:06]} 88. Kc3 {[%clk 0:00:12]}  Ke7 {[%clk 0:00:07]} 89. Kc4 {[%clk 0:00:12]}  Kd6 {[%clk 0:00:07]} 90. Rd3 {[%clk 0:00:08]}  Kc6 {[%clk 0:00:05]} 91. Rxd5 {[%clk 0:00:06]}  exd5+ {[%clk 0:00:06]} 92. Kd4 {[%clk 0:00:06]}  Kd6 {[%clk 0:00:04]} 93. f5 {[%clk 0:00:07]}  Kc6 {[%clk 0:00:05]} 94. f6 {[%clk 0:00:05]}  Kd6 {[%clk 0:00:05]} 95. f7 {[%clk 0:00:05]}  Ke7 {[%clk 0:00:05]} 96. Kxd5 {[%clk 0:00:06]}  Kxf7 {[%clk 0:00:05]} 97. Ke5 {[%clk 0:00:07]}  Kg6 {[%clk 0:00:05]} 98. Kf4 {[%clk 0:00:08]}  Kh5 {[%clk 0:00:06]} 99. Kf5 {[%clk 0:00:09]}  Kh6 {[%clk 0:00:07]} 100. Kxg4 {[%clk 0:00:10]}  Kg6 {[%clk 0:00:07]} 101. Kh4 {[%clk 0:00:11]}  Kh6 {[%clk 0:00:08]} 102. g4 {[%clk 0:00:12]}  Kg6 {[%clk 0:00:08]} 103. g5 {[%clk 0:00:12]}  Kg7 {[%clk 0:00:09]} 104. Kh5 {[%clk 0:00:12]}  Kh7 {[%clk 0:00:09]} 105. g6+ {[%clk 0:00:12]}  Kg7 {[%clk 0:00:10]} 106. Kg5 {[%clk 0:00:13]}  Kg8 {[%clk 0:00:10]} 107. Kf5 {[%clk 0:00:14]}  Kg7 {[%clk 0:00:08]} 108. Kg5 {[%clk 0:00:14]}  Kg8 {[%clk 0:00:08]} 109. Kh6 {[%clk 0:00:15]}  Kh8 {[%clk 0:00:09]} 110. g7+ {[%clk 0:00:15]}  Kg8 {[%clk 0:00:09]} 111. Kg6 {[%clk 0:00:16]} 1/2-1/2


[Site "https://www.chess.com"]

[Event "Titled Tuesday Blitz March 08 Late 2022"]
[White "Jobava, Baadur"]
[Black "Oparin, Grigoriy"]
[WhiteFideId "13601520"]
[BlackFideId "24125890"]
[WhiteElo "2617"]
[BlackElo "2665"]
[Result "1-0"]
[Round "06"]
[TimeControl "180+1"]
[Date "2022.03.08"]
[WhiteClock "0:00:32"]
[BlackClock "0:00:28"]

1. b3 {[%clk 0:02:59]}  Nf6 {[%clk 0:02:59]} 2. Bb2 {[%clk 0:03:00]}  d5 {[%clk 0:03:00]} 3. e3 {[%clk 0:03:00]}  e6 {[%clk 0:02:58]} 4. f4 {[%clk 0:03:00]}  Bd6 {[%clk 0:02:56]} 5. Nf3 {[%clk 0:03:00]}  O-O {[%clk 0:02:57]} 6. g4 {[%clk 0:02:59]}  a5 {[%clk 0:02:56]} 7. g5 {[%clk 0:02:58]}  Ne8 {[%clk 0:02:56]} 8. Nc3 {[%clk 0:02:55]}  c6 {[%clk 0:02:53]} 9. h4 {[%clk 0:02:55]}  b5 {[%clk 0:02:51]} 10. h5 {[%clk 0:02:53]}  a4 {[%clk 0:02:50]} 11. Rb1 {[%clk 0:02:53]}  axb3 {[%clk 0:02:48]} 12. axb3 {[%clk 0:02:54]}  b4 {[%clk 0:02:49]} 13. Ne2 {[%clk 0:02:44]}  Ra2 {[%clk 0:02:47]} 14. Nc1 {[%clk 0:02:43]}  Rxb2 {[%clk 0:02:45]} 15. Rxb2 {[%clk 0:02:44]}  c5 {[%clk 0:02:43]} 16. Ra2 {[%clk 0:02:40]}  Nc6 {[%clk 0:02:42]} 17. Bg2 {[%clk 0:02:36]}  e5 {[%clk 0:02:34]} 18. Ne2 {[%clk 0:02:29]}  Bg4 {[%clk 0:02:24]} 19. h6 {[%clk 0:02:25]}  g6 {[%clk 0:02:19]} 20. O-O {[%clk 0:02:21]}  e4 {[%clk 0:02:17]} 21. Nh2 {[%clk 0:02:21]}  Be6 {[%clk 0:02:08]} 22. d3 {[%clk 0:02:20]}  f5 {[%clk 0:02:00]} 23. gxf6 {[%clk 0:02:13]}  Nxf6 {[%clk 0:01:59]} 24. dxe4 {[%clk 0:02:13]}  Nxe4 {[%clk 0:01:52]} 25. Bxe4 {[%clk 0:02:09]}  dxe4 {[%clk 0:01:53]} 26. Ng3 {[%clk 0:02:07]}  Qe7 {[%clk 0:01:38]} 27. Nxe4 {[%clk 0:02:02]}  Bc7 {[%clk 0:01:34]} 28. Ng5 {[%clk 0:02:00]}  Rd8 {[%clk 0:01:29]} 29. Qa1 {[%clk 0:01:50]}  Bf5 {[%clk 0:01:18]} 30. e4 {[%clk 0:01:40]}  Nd4 {[%clk 0:01:12]} 31. exf5 {[%clk 0:01:36]}  Bxf4 {[%clk 0:01:03]} 32. Ngf3 {[%clk 0:01:26]}  Qe3+ {[%clk 0:00:50]} 33. Kh1 {[%clk 0:01:17]}  Nxf5 {[%clk 0:00:51]} 34. Ra8 {[%clk 0:01:05]}  Qe8 {[%clk 0:00:46]} 35. Rxd8 {[%clk 0:01:03]}  Qxd8 {[%clk 0:00:47]} 36. Rd1 {[%clk 0:00:52]}  Qe7 {[%clk 0:00:40]} 37. Qa8+ {[%clk 0:00:49]}  Kf7 {[%clk 0:00:40]} 38. Qd5+ {[%clk 0:00:49]}  Qe6 {[%clk 0:00:37]} 39. Qxe6+ {[%clk 0:00:47]}  Kxe6 {[%clk 0:00:38]} 40. Ng4 {[%clk 0:00:41]}  Nxh6 {[%clk 0:00:38]} 41. Nxh6 {[%clk 0:00:41]}  Bxh6 {[%clk 0:00:39]} 42. Kg2 {[%clk 0:00:41]}  Bf4 {[%clk 0:00:39]} 43. Ne1 {[%clk 0:00:33]}  h5 {[%clk 0:00:39]} 44. Nd3 {[%clk 0:00:34]}  Bd6 {[%clk 0:00:39]} 45. Kf3 {[%clk 0:00:34]}  Kf5 {[%clk 0:00:30]} 46. Nxb4 {[%clk 0:00:34]}  Be7 {[%clk 0:00:28]} 47. Nd5 {[%clk 0:00:32]} 1-0


[Site "https://www.chess.com"]

[Event "Titled Tuesday Blitz March 08 Late 2022"]
[White "Karttunen, Mika"]
[Black "Kuegel, Tobias"]
[WhiteFideId "502081"]
[BlackFideId "4636295"]
[WhiteElo "2666"]
[BlackElo "2497"]
[Result "0-1"]
[Round "06"]
[TimeControl "180+1"]
[Date "2022.03.09"]
[WhiteClock "0:00:06"]
[BlackClock "0:00:47"]

1. e4 {[%clk 0:03:00]}  c5 {[%clk 0:02:57]} 2. Nf3 {[%clk 0:03:00]}  e6 {[%clk 0:02:53]} 3. d4 {[%clk 0:03:00]}  cxd4 {[%clk 0:02:54]} 4. Nxd4 {[%clk 0:03:00]}  Nf6 {[%clk 0:02:54]} 5. Nc3 {[%clk 0:03:00]}  Nc6 {[%clk 0:02:55]} 6. Be3 {[%clk 0:02:59]}  Bb4 {[%clk 0:02:48]} 7. Nxc6 {[%clk 0:02:50]}  bxc6 {[%clk 0:02:49]} 8. e5 {[%clk 0:02:29]}  Nd5 {[%clk 0:02:44]} 9. Bd2 {[%clk 0:02:29]}  O-O {[%clk 0:02:41]} 10. Ne4 {[%clk 0:02:15]}  Be7 {[%clk 0:02:33]} 11. c4 {[%clk 0:02:12]}  Nb6 {[%clk 0:02:27]} 12. Bd3 {[%clk 0:01:58]}  f5 {[%clk 0:02:11]} 13. Nc3 {[%clk 0:00:46]}  d5 {[%clk 0:02:04]} 14. exd6 {[%clk 0:00:46]}  Qxd6 {[%clk 0:01:59]} 15. Qe2 {[%clk 0:00:25]}  e5 {[%clk 0:01:51]} 16. f3 {[%clk 0:00:24]}  Bh4+ {[%clk 0:01:47]} 17. g3 {[%clk 0:00:24]}  Bf6 {[%clk 0:01:48]} 18. O-O-O {[%clk 0:00:24]}  Be6 {[%clk 0:01:43]} 19. Be3 {[%clk 0:00:19]}  Qb4 {[%clk 0:01:40]} 20. a3 {[%clk 0:00:04]}  Qb3 {[%clk 0:01:39]} 21. Rhe1 {[%clk 0:00:03]}  Nxc4 {[%clk 0:01:35]} 22. Bc5 {[%clk 0:00:01]}  Rfb8 {[%clk 0:01:28]} 23. Bxc4 {[%clk 0:00:02]}  Bxc4 {[%clk 0:01:28]} 24. Qc2 {[%clk 0:00:03]}  Qxc2+ {[%clk 0:01:28]} 25. Kxc2 {[%clk 0:00:03]}  Bb3+ {[%clk 0:01:29]} 26. Kc1 {[%clk 0:00:04]}  Bxd1 {[%clk 0:01:29]} 27. Rxd1 {[%clk 0:00:05]}  Rb7 {[%clk 0:01:23]} 28. Kc2 {[%clk 0:00:05]}  Kf7 {[%clk 0:01:20]} 29. b4 {[%clk 0:00:05]}  Rd8 {[%clk 0:01:19]} 30. Re1 {[%clk 0:00:05]}  Rbd7 {[%clk 0:01:18]} 31. Re2 {[%clk 0:00:05]}  g5 {[%clk 0:01:17]} 32. g4 {[%clk 0:00:05]}  e4 {[%clk 0:01:11]} 33. fxe4 {[%clk 0:00:04]}  Bxc3 {[%clk 0:01:07]} 34. Kxc3 {[%clk 0:00:05]}  f4 {[%clk 0:01:07]} 35. e5 {[%clk 0:00:05]}  Ke6 {[%clk 0:01:07]} 36. h4 {[%clk 0:00:04]}  Rd3+ {[%clk 0:01:07]} 37. Kc4 {[%clk 0:00:04]}  h6 {[%clk 0:01:02]} 38. Bd6 {[%clk 0:00:04]}  Rxa3 {[%clk 0:00:58]} 39. hxg5 {[%clk 0:00:05]}  hxg5 {[%clk 0:00:58]} 40. Rh2 {[%clk 0:00:06]}  Rxd6 {[%clk 0:00:48]} 41. Rh6+ {[%clk 0:00:06]}  Kxe5 {[%clk 0:00:47]} 0-1


[Site "https://www.chess.com"]

[Event "Titled Tuesday Blitz March 08 Late 2022"]
[White "Keymer, Vincent"]
[Black "Bashirli, Nail"]
[WhiteFideId "12940690"]
[BlackFideId "13406809"]
[WhiteElo "2557"]
[BlackElo "2333"]
[Result "1-0"]
[Round "06"]
[TimeControl "180+1"]
[Date "2022.03.08"]
[WhiteClock "0:01:10"]
[BlackClock "0:00:49"]

1. Nf3 {[%clk 0:03:00]}  d5 {[%clk 0:02:58]} 2. e3 {[%clk 0:03:01]}  Nf6 {[%clk 0:02:56]} 3. c4 {[%clk 0:03:01]}  e6 {[%clk 0:02:56]} 4. Nc3 {[%clk 0:03:01]}  Be7 {[%clk 0:02:55]} 5. b3 {[%clk 0:03:01]}  O-O {[%clk 0:02:55]} 6. Bb2 {[%clk 0:03:02]}  b6 {[%clk 0:02:55]} 7. cxd5 {[%clk 0:03:02]}  exd5 {[%clk 0:02:56]} 8. d4 {[%clk 0:03:02]}  c5 {[%clk 0:02:56]} 9. Bd3 {[%clk 0:03:02]}  Nc6 {[%clk 0:02:56]} 10. Ne2 {[%clk 0:02:51]}  Bg4 {[%clk 0:02:47]} 11. Rc1 {[%clk 0:02:47]}  Rc8 {[%clk 0:02:45]} 12. O-O {[%clk 0:02:42]}  Ne4 {[%clk 0:02:32]} 13. dxc5 {[%clk 0:02:33]}  bxc5 {[%clk 0:02:14]} 14. h3 {[%clk 0:02:31]}  Bxf3 {[%clk 0:02:03]} 15. gxf3 {[%clk 0:02:32]}  Ng5 {[%clk 0:02:02]} 16. f4 {[%clk 0:02:29]}  Nf3+ {[%clk 0:01:55]} 17. Kg2 {[%clk 0:02:12]}  Nh4+ {[%clk 0:01:55]} 18. Kh2 {[%clk 0:02:12]}  Bf6 {[%clk 0:01:52]} 19. Bxf6 {[%clk 0:02:05]}  Qxf6 {[%clk 0:01:53]} 20. Ng3 {[%clk 0:02:02]}  g6 {[%clk 0:01:38]} 21. Rxc5 {[%clk 0:01:47]}  d4 {[%clk 0:01:30]} 22. Qg4 {[%clk 0:01:33]}  dxe3 {[%clk 0:01:23]} 23. fxe3 {[%clk 0:01:34]}  Rcd8 {[%clk 0:01:13]} 24. Ne4 {[%clk 0:01:28]}  Qe7 {[%clk 0:01:11]} 25. Rxc6 {[%clk 0:01:27]}  Rxd3 {[%clk 0:01:07]} 26. Nf6+ {[%clk 0:01:27]}  Kh8 {[%clk 0:01:00]} 27. Qxh4 {[%clk 0:01:25]}  h5 {[%clk 0:00:55]} 28. Qg5 {[%clk 0:01:11]}  Rd2+ {[%clk 0:00:49]} 29. Kh1 {[%clk 0:01:10]} 1-0


[Site "https://www.chess.com"]

[Event "Titled Tuesday Blitz March 08 Late 2022"]
[White "Korchmar, Vasiliy"]
[Black "Salinas Herrera, Pablo"]
[WhiteFideId "24131750"]
[BlackFideId "3407128"]
[WhiteElo "2370"]
[BlackElo "2541"]
[Result "0-1"]
[Round "06"]
[TimeControl "180+1"]
[Date "2022.03.08"]
[WhiteClock "0:00:01"]
[BlackClock "0:00:04"]

1. e4 {[%clk 0:03:00]}  c5 {[%clk 0:02:58]} 2. Nf3 {[%clk 0:03:00]}  e6 {[%clk 0:02:58]} 3. d4 {[%clk 0:02:59]}  cxd4 {[%clk 0:02:59]} 4. Nxd4 {[%clk 0:02:59]}  a6 {[%clk 0:02:59]} 5. g3 {[%clk 0:02:59]}  d6 {[%clk 0:02:59]} 6. Bg2 {[%clk 0:02:59]}  Qc7 {[%clk 0:02:59]} 7. O-O {[%clk 0:02:59]}  Nc6 {[%clk 0:02:59]} 8. Nc3 {[%clk 0:02:59]}  Be7 {[%clk 0:02:59]} 9. Nb3 {[%clk 0:02:58]}  Nf6 {[%clk 0:02:59]} 10. a4 {[%clk 0:02:58]}  O-O {[%clk 0:02:59]} 11. a5 {[%clk 0:02:57]}  Bd7 {[%clk 0:03:00]} 12. f4 {[%clk 0:02:52]}  Rac8 {[%clk 0:02:56]} 13. Be3 {[%clk 0:02:48]}  Qb8 {[%clk 0:02:46]} 14. g4 {[%clk 0:02:46]}  Be8 {[%clk 0:02:39]} 15. g5 {[%clk 0:02:43]}  Nd7 {[%clk 0:02:39]} 16. Rf3 {[%clk 0:02:37]}  g6 {[%clk 0:02:38]} 17. Rh3 {[%clk 0:02:28]}  b5 {[%clk 0:02:28]} 18. Qg4 {[%clk 0:02:10]}  f5 {[%clk 0:01:54]} 19. gxf6 {[%clk 0:02:05]}  Nxf6 {[%clk 0:01:53]} 20. Qe2 {[%clk 0:01:49]}  Bf7 {[%clk 0:01:47]} 21. Rf1 {[%clk 0:01:41]}  Bd8 {[%clk 0:01:45]} 22. f5 {[%clk 0:01:33]}  Ne5 {[%clk 0:01:45]} 23. Nd4 {[%clk 0:01:24]}  Re8 {[%clk 0:01:36]} 24. fxe6 {[%clk 0:01:16]}  Bxe6 {[%clk 0:01:37]} 25. Nxe6 {[%clk 0:01:17]}  Rxe6 {[%clk 0:01:35]} 26. Nd5 {[%clk 0:01:18]}  Nxd5 {[%clk 0:01:33]} 27. exd5 {[%clk 0:01:18]}  Rf6 {[%clk 0:01:34]} 28. c3 {[%clk 0:01:01]}  Rxf1+ {[%clk 0:01:25]} 29. Qxf1 {[%clk 0:01:02]}  Bxa5 {[%clk 0:01:25]} 30. Bh6 {[%clk 0:01:02]}  Rc7 {[%clk 0:01:09]} 31. Qf6 {[%clk 0:00:50]}  Qe8 {[%clk 0:00:51]} 32. Qxd6 {[%clk 0:00:38]}  Rd7 {[%clk 0:00:34]} 33. Qe6+ {[%clk 0:00:30]}  Qxe6 {[%clk 0:00:34]} 34. dxe6 {[%clk 0:00:31]}  Rd1+ {[%clk 0:00:35]} 35. Kf2 {[%clk 0:00:31]}  Ng4+ {[%clk 0:00:18]} 36. Ke2 {[%clk 0:00:31]}  Rd6 {[%clk 0:00:19]} 37. Be3 {[%clk 0:00:19]}  h5 {[%clk 0:00:13]} 38. Rg3 {[%clk 0:00:14]}  Bb6 {[%clk 0:00:11]} 39. Bxb6 {[%clk 0:00:09]}  Rxb6 {[%clk 0:00:12]} 40. Kd3 {[%clk 0:00:07]}  Kg7 {[%clk 0:00:10]} 41. Bd5 {[%clk 0:00:07]}  Rd6 {[%clk 0:00:10]} 42. c4 {[%clk 0:00:05]}  Ne5+ {[%clk 0:00:07]} 43. Kd4 {[%clk 0:00:03]}  Nxc4 {[%clk 0:00:08]} 44. Kc5 {[%clk 0:00:02]}  Rd8 {[%clk 0:00:08]} 45. Bc6 {[%clk 0:00:01]}  Kf6 {[%clk 0:00:04]} 0-1


[Site "https://www.chess.com"]

[Event "Titled Tuesday Blitz March 08 Late 2022"]
[White "Kovanova, Baira"]
[Black "Lopez Del Alamo, Antonio"]
[WhiteFideId "4164083"]
[BlackFideId "2227339"]
[WhiteElo "2190"]
[BlackElo "2082"]
[Result "0-1"]
[Round "06"]
[TimeControl "180+1"]
[Date "2022.03.09"]
[WhiteClock "0:00:01"]
[BlackClock "0:00:13"]

1. e4 {[%clk 0:02:59]}  c5 {[%clk 0:02:57]} 2. Nf3 {[%clk 0:02:59]}  e6 {[%clk 0:02:58]} 3. d3 {[%clk 0:02:59]}  Nc6 {[%clk 0:02:57]} 4. g3 {[%clk 0:02:59]}  g6 {[%clk 0:02:58]} 5. Bg2 {[%clk 0:03:00]}  Bg7 {[%clk 0:02:59]} 6. O-O {[%clk 0:03:00]}  Nge7 {[%clk 0:02:59]} 7. Re1 {[%clk 0:02:58]}  d5 {[%clk 0:02:59]} 8. Qe2 {[%clk 0:02:58]}  Qc7 {[%clk 0:02:58]} 9. e5 {[%clk 0:02:56]}  g5 {[%clk 0:02:55]} 10. Bxg5 {[%clk 0:02:55]}  Ng6 {[%clk 0:02:52]} 11. Bf6 {[%clk 0:02:53]}  Bxf6 {[%clk 0:02:49]} 12. exf6 {[%clk 0:02:53]}  Qd8 {[%clk 0:02:50]} 13. Nc3 {[%clk 0:02:03]}  O-O {[%clk 0:02:46]} 14. Ng5 {[%clk 0:01:57]}  Qxf6 {[%clk 0:02:43]} 15. Qh5 {[%clk 0:01:56]}  Qg7 {[%clk 0:02:43]} 16. h4 {[%clk 0:01:52]}  Nd4 {[%clk 0:02:39]} 17. Rac1 {[%clk 0:01:50]}  Bd7 {[%clk 0:02:01]} 18. Ne2 {[%clk 0:01:47]}  Nxe2+ {[%clk 0:01:53]} 19. Rxe2 {[%clk 0:01:47]}  h6 {[%clk 0:01:50]} 20. Nf3 {[%clk 0:01:46]}  Qxb2 {[%clk 0:01:49]} 21. Qxh6 {[%clk 0:01:46]}  Qg7 {[%clk 0:01:50]} 22. Qd2 {[%clk 0:01:31]}  Kh8 {[%clk 0:01:45]} 23. h5 {[%clk 0:01:25]}  Ne7 {[%clk 0:01:44]} 24. Ne5 {[%clk 0:01:24]}  Be8 {[%clk 0:01:44]} 25. Rb1 {[%clk 0:01:02]}  b6 {[%clk 0:01:31]} 26. Qf4 {[%clk 0:00:47]}  f6 {[%clk 0:01:26]} 27. Ng6+ {[%clk 0:00:24]}  Bxg6 {[%clk 0:01:23]} 28. hxg6 {[%clk 0:00:23]}  e5 {[%clk 0:01:24]} 29. Qh4+ {[%clk 0:00:21]}  Kg8 {[%clk 0:01:23]} 30. c4 {[%clk 0:00:20]}  Rad8 {[%clk 0:01:21]} 31. cxd5 {[%clk 0:00:21]}  Qxg6 {[%clk 0:01:19]} 32. Re4 {[%clk 0:00:17]}  Qh7 {[%clk 0:01:05]} 33. Qg4+ {[%clk 0:00:12]}  Kh8 {[%clk 0:01:03]} 34. Qe6 {[%clk 0:00:12]}  Ng6 {[%clk 0:00:58]} 35. d6 {[%clk 0:00:08]}  Qd7 {[%clk 0:00:54]} 36. Qc4 {[%clk 0:00:05]}  Qxd6 {[%clk 0:00:53]} 37. Rg4 {[%clk 0:00:05]}  f5 {[%clk 0:00:52]} 38. Rg5 {[%clk 0:00:04]}  Kg7 {[%clk 0:00:43]} 39. Bf3 {[%clk 0:00:04]}  Kf6 {[%clk 0:00:41]} 40. Rh5 {[%clk 0:00:03]}  Qxd3 {[%clk 0:00:39]} 41. Qxd3 {[%clk 0:00:02]}  Rxd3 {[%clk 0:00:39]} 42. Kg2 {[%clk 0:00:03]}  Rg8 {[%clk 0:00:32]} 43. Kf1 {[%clk 0:00:02]}  Rxf3 {[%clk 0:00:31]} 44. Rd1 {[%clk 0:00:02]}  Re8 {[%clk 0:00:15]} 45. Rd6+ {[%clk 0:00:01]}  Re6 {[%clk 0:00:15]} 46. Rd8 {[%clk 0:00:02]}  Ra3 {[%clk 0:00:15]} 47. Rh6 {[%clk 0:00:01]}  Kg7 {[%clk 0:00:14]} 48. Rh5 {[%clk 0:00:01]}  f4 {[%clk 0:00:13]} 0-1


[Site "https://www.chess.com"]